Workbook

Sheet Produktionsanlæg
A1: Produktionsanlæg | B1: Enhed | C1: Standard-levetid | D1: Samlet mængde per 31/12-2022 | E1: Samlet mængde per 31/12-2023 | F1: Samlet mængde per 31/12-2024 | G1: Afvigelse 2022-2023 | H1: Afvigelse 2023-2024 | I1: Bemærkninger
A3: Renseanlæg 1 | G3: =IF(D3="",IF(E3>0,"Ny data",IF(E3="","",0)),IF(D3=0,IF(E3=0,0,"Ny data"),(E3-D3)/D3)) ->  | H3: =IF(E3="",IF(F3>0,"Ny data",IF(F3="","",0)),IF(E3=0,IF(F3=0,0,"Ny data"),(F3-E3)/E3)) -> 
A4: Mindre renseanlæg
A5: Mindre renseanlæg < 5.000 PE | B5: PE | C5: 40 | D5: 0 | E5: 0 | F5: 0 | G5: 0 | H5: 0
A6: Renseanlæg >= 5.000 PE, Vandbehandling
A7: Indløb med riste, Konstruktioner | B7: PE | C7: 60 | D7: 536000 | E7: 536000 | F7: 536000 | G7: 0 | H7: 0 | I7: Forrenseanlæg Toldbodgade. Dimensioneret kapacitet beregnet ud fra hydraulisk krav
A8: Indløb med riste, Mek/EL | B8: PE | C8: 20 | D8: 536000 | E8: 536000 | F8: 536000 | G8: 0 | H8: 0
A9: Indløb med riste, SRO | B9: PE | C9: 10 | D9: 536000 | E9: 536000 | F9: 536000 | G9: 0 | H9: 0
A10: Sand- og fedtfang, Kontruktioner | B10: PE | C10: 60 | D10: 536000 | E10: 536000 | F10: 536000 | G10: 0 | H10: 0
A11: Sand- og fedtfang, Mek/EL | B11: PE | C11: 20 | D11: 536000 | E11: 536000 | F11: 536000 | G11: 0 | H11: 0
A12: Sand- og fedtfang, SRO | B12: PE | C12: 10 | D12: 536000 | E12: 536000 | F12: 536000 | G12: 0 | H12: 0
A13: Forklaring, Konstruktioner | B13: PE | C13: 60 | D13: 0 | E13: 0 | F13: 0 | G13: 0 | H13: 0
A14: Forklaring, Mek/EL | B14: PE | C14: 20 | D14: 0 | E14: 0 | F14: 0 | G14: 0 | H14: 0
A15: Forklaring, SRO | B15: PE | C15: 10 | D15: 0 | E15: 0 | F15: 0 | G15: 0 | H15: 0
A16: Beluftningstanke, Konstruktioner | B16: PE | C16: 60 | D16: 0 | E16: 0 | F16: 0 | G16: 0 | H16: 0
A17: Beluftningstanke, Mek/EL | B17: PE | C17: 20 | D17: 0 | E17: 0 | F17: 0 | G17: 0 | H17: 0
A18: Beluftningstanke, SRO | B18: PE | C18: 10 | D18: 0 | E18: 0 | F18: 0 | G18: 0 | H18: 0
A19: Efterklaringstanke, Konstruktioner | B19: PE | C19: 60 | D19: 0 | E19: 0 | F19: 0 | G19: 0 | H19: 0
A20: Efterklaringstanke, Mek/El | B20: PE | C20: 20 | D20: 0 | E20: 0 | F20: 0 | G20: 0 | H20: 0
A21: Efterklaringstanke, SRO | B21: PE | C21: 10 | D21: 0 | E21: 0 | F21: 0 | G21: 0 | H21: 0
A22: Efterbehandlingsanlæg (sandfilter), Konstruktioner | B22: PE | C22: 60 | D22: 0 | E22: 0 | F22: 0 | G22: 0 | H22: 0
A23: Efterbehandlingsanlæg (sandfilter), Mek/EL | B23: PE | C23: 20 | D23: 0 | E23: 0 | F23: 0 | G23: 0 | H23: 0
A24: Efterbehandlingsanlæg (sandfilter), SRO | B24: PE | C24: 10 | D24: 0 | E24: 0 | F24: 0 | G24: 0 | H24: 0
A25: Renseanlæg >= 5.000 PE, Slambehandling
A26: Forafvanding, slam, Konstruktion | B26: PE | C26: 60 | D26: 0 | E26: 0 | F26: 0 | G26: 0 | H26: 0
A27: Forafvanding, slam, Mek/EL | B27: PE | C27: 20 | D27: 0 | E27: 0 | F27: 0 | G27: 0 | H27: 0
A28: Forafvanding, slam, SRO | B28: PE | C28: 10 | D28: 0 | E28: 0 | F28: 0 | G28: 0 | H28: 0
A29: Rådnetanke, slam, Konstruktioner | B29: PE | C29: 60 | D29: 0 | E29: 0 | F29: 0 | G29: 0 | H29: 0
A30: Rådnetanke, slam, Mek/EL | B30: PE | C30: 20 | D30: 0 | E30: 0 | F30: 0 | G30: 0 | H30: 0
A31: Rådnetanke, slam, SRO | B31: PE | C31: 10 | D31: 0 | E31: 0 | F31: 0 | G31: 0 | H31: 0
A32: Gasdisponering, Konstruktioner | B32: PE | C32: 60 | D32: 0 | E32: 0 | F32: 0 | G32: 0 | H32: 0
A33: Gasdisponering, Mek/EL | B33: PE | C33: 20 | D33: 0 | E33: 0 | F33: 0 | G33: 0 | H33: 0
A34: Gasdisponering, SRO | B34: PE | C34: 10 | D34: 0 | E34: 0 | F34: 0 | G34: 0 | H34: 0
A35: Gasdisponering - elproduktionsanlæg, Konstruktioner | B35: PE | C35: 60 | D35: 0 | E35: 0 | F35: 0 | G35: 0 | H35: 0
A36: Gasdisponering - elproduktionsanlæg, Mek/EL | B36: PE | C36: 20 | D36: 0 | E36: 0 | F36: 0 | G36: 0 | H36: 0
A37: Gasdisponering - elproduktionsanlæg, SRO | B37: PE | C37: 10 | D37: 0 | E37: 0 | F37: 0 | G37: 0 | H37: 0
A38: Gasrensning - Aktivt kulfilter | B38: m3/t | C38: 15 | D38: 0 | E38: 0 | F38: 0 | G38: 0 | H38: 0
A39: Gasrensning - Biologisk skrubber | B39: m3/t | C39: 15 | D39: 0 | E39: 0 | F39: 0 | G39: 0 | H39: 0
A40: Opgraderingsanlæg - Membran | B40: m3/t | C40: 15 | D40: 0 | E40: 0 | F40: 0 | G40: 0 | H40: 0
A41: Varmeproduktionsanlæg | B41: m3/t | C41: 15 | D41: 0 | E41: 0 | F41: 0 | G41: 0 | H41: 0
A42: Slutafvanding, slam - lavteknologisk (slambede), Konstruktioner | B42: PE | C42: 60 | D42: 0 | E42: 0 | F42: 0 | G42: 0 | H42: 0
A43: Slutafvanding, slam - lavteknologisk (slambede), Mek/EL | B43: PE | C43: 20 | D43: 0 | E43: 0 | F43: 0 | G43: 0 | H43: 0
A44: Slutafvanding, slam - lavteknologisk (slambede), SRO | B44: PE | C44: 10 | D44: 0 | E44: 0 | F44: 0 | G44: 0 | H44: 0
A45: Slutafvanding, slam - højteknologisk (centrifuger), Konstruktioner | B45: PE | C45: 60 | D45: 0 | E45: 0 | F45: 0 | G45: 0 | H45: 0
A46: Slutafvanding, slam - højteknologisk (centrifuger), Mek/El | B46: PE | C46: 20 | D46: 0 | E46: 0 | F46: 0 | G46: 0 | H46: 0
A47: Slutafvanding, slam - højteknologisk (centrifuger), SRO | B47: PE | C47: 10 | D47: 0 | E47: 0 | F47: 0 | G47: 0 | H47: 0
A48: Renseanlæg >= 5.000 PE, Slamdisponering
A49: Slutdisponering, slam - lavteknologisk (slammineralisering), Konstruktioner | B49: PE | C49: 60 | D49: 0 | E49: 0 | F49: 0 | G49: 0 | H49: 0
A50: Slutdisponering, slam - lavteknologisk (slammineralisering), Mek/EL | B50: PE | C50: 20 | D50: 0 | E50: 0 | F50: 0 | G50: 0 | H50: 0
A51: Slutdisponering, slam - lavteknologisk (slammineralisering), SRO | B51: PE | C51: 10 | D51: 0 | E51: 0 | F51: 0 | G51: 0 | H51: 0
A52: Slutdisponering, slam - højteknologisk (slamtørring), Konstruktioner | B52: PE | C52: 60 | D52: 0 | E52: 0 | F52: 0 | G52: 0 | H52: 0
A53: Slutdisponering, slam - højteknologisk (slamtørring), Mek/EL | B53: PE | C53: 20 | D53: 0 | E53: 0 | F53: 0 | G53: 0 | H53: 0
A54: Slutdisponering, slam - højteknologisk (slamtørring), SRO | B54: PE | C54: 10 | D54: 0 | E54: 0 | F54: 0 | G54: 0 | H54: 0
A55: Slutdisponering, slam - højteknologisk (slamtørring og -forbrænding), Konstruktioner | B55: PE | C55: 60 | D55: 0 | E55: 0 | F55: 0 | G55: 0 | H55: 0
A56: Slutdisponering, slam - højteknologisk (slamtørring og -forbrænding), Mek/EL | B56: PE | C56: 20 | D56: 0 | E56: 0 | F56: 0 | G56: 0 | H56: 0
A57: Slutdisponering, slam - højteknologisk (slamtørring og -forbrænding), SRO | B57: PE | C57: 10 | D57: 0 | E57: 0 | F57: 0 | G57: 0 | H57: 0
A58: Renseanlæg 2
A59: Mindre renseanlæg
A60: Mindre renseanlæg < 5.000 PE | B60: PE | C60: 40 | D60: 0 | E60: 0 | F60: 0 | G60: 0 | H60: 0
A61: Renseanlæg >= 5.000 PE, Vandbehandling
A62: Indløb med riste, Konstruktioner | B62: PE | C62: 60 | D62: 202000 | E62: 202000 | F62: 202000 | G62: 0 | H62: 0 | I62: Forrenseanlæg Hvidemøllevej. Dimensioneret kapacitet beregnet ud fra hydraulisk krav
A63: Indløb med riste, Mek/EL | B63: PE | C63: 20 | D63: 202000 | E63: 202000 | F63: 202000 | G63: 0 | H63: 0
A64: Indløb med riste, SRO | B64: PE | C64: 10 | D64: 202000 | E64: 202000 | F64: 202000 | G64: 0 | H64: 0
A65: Sand- og fedtfang, Kontruktioner | B65: PE | C65: 60 | D65: 202000 | E65: 202000 | F65: 202000 | G65: 0 | H65: 0
A66: Sand- og fedtfang, Mek/EL | B66: PE | C66: 20 | D66: 202000 | E66: 202000 | F66: 202000 | G66: 0 | H66: 0
A67: Sand- og fedtfang, SRO | B67: PE | C67: 10 | D67: 202000 | E67: 202000 | F67: 202000 | G67: =IF(D67="",IF(E67>0,"Ny data",IF(E67="","",0)),IF(D67=0,IF(E67=0,0,"Ny data"),(E67-D67)/D67)) -> 0 | H67: =IF(E67="",IF(F67>0,"Ny data",IF(F67="","",0)),IF(E67=0,IF(F67=0,0,"Ny data"),(F67-E67)/E67)) -> 0
A68: Forklaring, Konstruktioner | B68: PE | C68: 60 | D68: 0 | E68: 0 | F68: 0 | G68: 0 | H68: 0
A69: Forklaring, Mek/EL | B69: PE | C69: 20 | D69: 0 | E69: 0 | F69: 0 | G69: 0 | H69: 0
A70: Forklaring, SRO | B70: PE | C70: 10 | D70: 0 | E70: 0 | F70: 0 | G70: 0 | H70: 0
A71: Beluftningstanke, Konstruktioner | B71: PE | C71: 60 | D71: 0 | E71: 0 | F71: 0 | G71: 0 | H71: 0
A72: Beluftningstanke, Mek/EL | B72: PE | C72: 20 | D72: 0 | E72: 0 | F72: 0 | G72: 0 | H72: 0
A73: Beluftningstanke, SRO | B73: PE | C73: 10 | D73: 0 | E73: 0 | F73: 0 | G73: 0 | H73: 0
A74: Efterklaringstanke, Konstruktioner | B74: PE | C74: 60 | D74: 0 | E74: 0 | F74: 0 | G74: 0 | H74: 0
A75: Efterklaringstanke, Mek/El | B75: PE | C75: 20 | D75: 0 | E75: 0 | F75: 0 | G75: 0 | H75: 0
A76: Efterklaringstanke, SRO | B76: PE | C76: 10 | D76: 0 | E76: 0 | F76: 0 | G76: 0 | H76: 0
A77: Efterbehandlingsanlæg (sandfilter), Konstruktioner | B77: PE | C77: 60 | D77: 0 | E77: 0 | F77: 0 | G77: 0 | H77: 0
A78: Efterbehandlingsanlæg (sandfilter), Mek/EL | B78: PE | C78: 20 | D78: 0 | E78: 0 | F78: 0 | G78: 0 | H78: 0
A79: Efterbehandlingsanlæg (sandfilter), SRO | B79: PE | C79: 10 | D79: 0 | E79: 0 | F79: 0 | G79: 0 | H79: 0
A80: Renseanlæg >= 5.000 PE, Slambehandling
A81: Forafvanding, slam, Konstruktion | B81: PE | C81: 60 | D81: 0 | E81: 0 | F81: 0 | G81: 0 | H81: 0
A82: Forafvanding, slam, Mek/EL | B82: PE | C82: 20 | D82: 0 | E82: 0 | F82: 0 | G82: 0 | H82: 0
A83: Forafvanding, slam, SRO | B83: PE | C83: 10 | D83: 0 | E83: 0 | F83: 0 | G83: 0 | H83: 0
A84: Rådnetanke, slam, Konstruktioner | B84: PE | C84: 60 | D84: 0 | E84: 0 | F84: 0 | G84: 0 | H84: 0
A85: Rådnetanke, slam, Mek/EL | B85: PE | C85: 20 | D85: 0 | E85: 0 | F85: 0 | G85: 0 | H85: 0
A86: Rådnetanke, slam, SRO | B86: PE | C86: 10 | D86: 0 | E86: 0 | F86: 0 | G86: 0 | H86: 0
A87: Gasdisponering, Konstruktioner | B87: PE | C87: 60 | D87: 0 | E87: 0 | F87: 0 | G87: 0 | H87: 0
A88: Gasdisponering, Mek/EL | B88: PE | C88: 20 | D88: 0 | E88: 0 | F88: 0 | G88: 0 | H88: 0
A89: Gasdisponering, SRO | B89: PE | C89: 10 | D89: 0 | E89: 0 | F89: 0 | G89: 0 | H89: 0
A90: Gasdisponering - elproduktionsanlæg, Konstruktioner | B90: PE | C90: 60 | D90: 0 | E90: 0 | F90: 0 | G90: 0 | H90: 0
A91: Gasdisponering - elproduktionsanlæg, Mek/EL | B91: PE | C91: 20 | D91: 0 | E91: 0 | F91: 0 | G91: 0 | H91: 0
A92: Gasdisponering - elproduktionsanlæg, SRO | B92: PE | C92: 10 | D92: 0 | E92: 0 | F92: 0 | G92: 0 | H92: 0
A93: Gasrensning - Aktivt kulfilter | B93: m3/t | C93: 15 | D93: 0 | E93: 0 | F93: 0 | G93: 0 | H93: 0
A94: Gasrensning - Biologisk skrubber | B94: m3/t | C94: 15 | D94: 0 | E94: 0 | F94: 0 | G94: 0 | H94: 0
A95: Opgraderingsanlæg - Membran | B95: m3/t | C95: 15 | D95: 0 | E95: 0 | F95: 0 | G95: 0 | H95: 0
A96: Varmeproduktionsanlæg | B96: m3/t | C96: 15 | D96: 0 | E96: 0 | F96: 0 | G96: 0 | H96: 0
A97: Slutafvanding, slam - lavteknologisk (slambede), Konstruktioner | B97: PE | C97: 60 | D97: 0 | E97: 0 | F97: 0 | G97: 0 | H97: 0
A98: Slutafvanding, slam - lavteknologisk (slambede), Mek/EL | B98: PE | C98: 20 | D98: 0 | E98: 0 | F98: 0 | G98: 0 | H98: 0
A99: Slutafvanding, slam - lavteknologisk (slambede), SRO | B99: PE | C99: 10 | D99: 0 | E99: 0 | F99: 0 | G99: 0 | H99: 0
A100: Slutafvanding, slam - højteknologisk (centrifuger), Konstruktioner | B100: PE | C100: 60 | D100: 0 | E100: 0 | F100: 0 | G100: 0 | H100: 0
A101: Slutafvanding, slam - højteknologisk (centrifuger), Mek/El | B101: PE | C101: 20 | D101: 0 | E101: 0 | F101: 0 | G101: 0 | H101: 0
A102: Slutafvanding, slam - højteknologisk (centrifuger), SRO | B102: PE | C102: 10 | D102: 0 | E102: 0 | F102: 0 | G102: 0 | H102: 0
A103: Renseanlæg >= 5.000 PE, Slamdisponering
A104: Slutdisponering, slam - lavteknologisk (slammineralisering), Konstruktioner | B104: PE | C104: 60 | D104: 0 | E104: 0 | F104: 0 | G104: 0 | H104: 0
A105: Slutdisponering, slam - lavteknologisk (slammineralisering), Mek/EL | B105: PE | C105: 20 | D105: 0 | E105: 0 | F105: 0 | G105: 0 | H105: 0
A106: Slutdisponering, slam - lavteknologisk (slammineralisering), SRO | B106: PE | C106: 10 | D106: 0 | E106: 0 | F106: 0 | G106: 0 | H106: 0
A107: Slutdisponering, slam - højteknologisk (slamtørring), Konstruktioner | B107: PE | C107: 60 | D107: 0 | E107: 0 | F107: 0 | G107: 0 | H107: 0
A108: Slutdisponering, slam - højteknologisk (slamtørring), Mek/EL | B108: PE | C108: 20 | D108: 0 | E108: 0 | F108: 0 | G108: 0 | H108: 0
A109: Slutdisponering, slam - højteknologisk (slamtørring), SRO | B109: PE | C109: 10 | D109: 0 | E109: 0 | F109: 0 | G109: 0 | H109: 0
A110: Slutdisponering, slam - højteknologisk (slamtørring og -forbrænding), Konstruktioner | B110: PE | C110: 60 | D110: 0 | E110: 0 | F110: 0 | G110: 0 | H110: 0
A111: Slutdisponering, slam - højteknologisk (slamtørring og -forbrænding), Mek/EL | B111: PE | C111: 20 | D111: 0 | E111: 0 | F111: 0 | G111: 0 | H111: 0
A112: Slutdisponering, slam - højteknologisk (slamtørring og -forbrænding), SRO | B112: PE | C112: 10 | D112: 0 | E112: 0 | F112: 0 | G112: 0 | H112: 0
A113: Renseanlæg 3
A114: Mindre renseanlæg
A115: Mindre renseanlæg < 5.000 PE | B115: PE | C115: 40 | D115: 0 | E115: 0 | F115: 0 | G115: 0 | H115: 0
A116: Renseanlæg >= 5.000 PE, Vandbehandling
A117: Indløb med riste, Konstruktioner | B117: PE | C117: 60 | D117: 24960 | E117: 24960 | F117: 24960 | G117: 0 | H117: 0 | I117: Langå Renseanlæg
A118: Indløb med riste, Mek/EL | B118: PE | C118: 20 | D118: 24960 | E118: 24960 | F118: 24960 | G118: 0 | H118: 0
A119: Indløb med riste, SRO | B119: PE | C119: 10 | D119: 24960 | E119: 24960 | F119: 24960 | G119: 0 | H119: 0
A120: Sand- og fedtfang, Kontruktioner | B120: PE | C120: 60 | D120: 0 | E120: 0 | F120: 0 | G120: 0 | H120: 0
A121: Sand- og fedtfang, Mek/EL | B121: PE | C121: 20 | D121: 0 | E121: 0 | F121: 0 | G121: 0 | H121: 0
A122: Sand- og fedtfang, SRO | B122: PE | C122: 10 | D122: 0 | E122: 0 | F122: 0 | G122: 0 | H122: 0
A123: Forklaring, Konstruktioner | B123: PE | C123: 60 | D123: 0 | E123: 0 | F123: 0 | G123: 0 | H123: 0
A124: Forklaring, Mek/EL | B124: PE | C124: 20 | D124: 0 | E124: 0 | F124: 0 | G124: 0 | H124: 0
A125: Forklaring, SRO | B125: PE | C125: 10 | D125: 0 | E125: 0 | F125: 0 | G125: 0 | H125: 0
A126: Beluftningstanke, Konstruktioner | B126: PE | C126: 60 | D126: 9660 | E126: 9660 | F126: 9660 | G126: 0 | H126: 0
A127: Beluftningstanke, Mek/EL | B127: PE | C127: 20 | D127: 9660 | E127: 9660 | F127: 9660 | G127: 0 | H127: 0
A128: Beluftningstanke, SRO | B128: PE | C128: 10 | D128: 9660 | E128: 9660 | F128: 9660 | G128: 0 | H128: 0
A129: Efterklaringstanke, Konstruktioner | B129: PE | C129: 60 | D129: 24960 | E129: 24960 | F129: 24960 | G129: 0 | H129: 0
A130: Efterklaringstanke, Mek/El | B130: PE | C130: 20 | D130: 24960 | E130: 24960 | F130: 24960 | G130: 0 | H130: 0
A131: Efterklaringstanke, SRO | B131: PE | C131: 10 | D131: 24960 | E131: 24960 | F131: 24960 | G131: =IF(D131="",IF(E131>0,"Ny data",IF(E131="","",0)),IF(D131=0,IF(E131=0,0,"Ny data"),(E131-D131)/D131)) -> 0 | H131: =IF(E131="",IF(F131>0,"Ny data",IF(F131="","",0)),IF(E131=0,IF(F131=0,0,"Ny data"),(F131-E131)/E131)) -> 0
A132: Efterbehandlingsanlæg (sandfilter), Konstruktioner | B132: PE | C132: 60 | D132: 0 | E132: 0 | F132: 0 | G132: 0 | H132: 0
A133: Efterbehandlingsanlæg (sandfilter), Mek/EL | B133: PE | C133: 20 | D133: 0 | E133: 0 | F133: 0 | G133: 0 | H133: 0
A134: Efterbehandlingsanlæg (sandfilter), SRO | B134: PE | C134: 10 | D134: 0 | E134: 0 | F134: 0 | G134: 0 | H134: 0
A135: Renseanlæg >= 5.000 PE, Slambehandling
A136: Forafvanding, slam, Konstruktion | B136: PE | C136: 60 | D136: 0 | E136: 0 | F136: 0 | G136: 0 | H136: 0
A137: Forafvanding, slam, Mek/EL | B137: PE | C137: 20 | D137: 0 | E137: 0 | F137: 0 | G137: 0 | H137: 0
A138: Forafvanding, slam, SRO | B138: PE | C138: 10 | D138: 0 | E138: 0 | F138: 0 | G138: 0 | H138: 0
A139: Rådnetanke, slam, Konstruktioner | B139: PE | C139: 60 | D139: 0 | E139: 0 | F139: 0 | G139: 0 | H139: 0
A140: Rådnetanke, slam, Mek/EL | B140: PE | C140: 20 | D140: 0 | E140: 0 | F140: 0 | G140: 0 | H140: 0
A141: Rådnetanke, slam, SRO | B141: PE | C141: 10 | D141: 0 | E141: 0 | F141: 0 | G141: 0 | H141: 0
A142: Gasdisponering, Konstruktioner | B142: PE | C142: 60 | D142: 0 | E142: 0 | F142: 0 | G142: 0 | H142: 0
A143: Gasdisponering, Mek/EL | B143: PE | C143: 20 | D143: 0 | E143: 0 | F143: 0 | G143: 0 | H143: 0
A144: Gasdisponering, SRO | B144: PE | C144: 10 | D144: 0 | E144: 0 | F144: 0 | G144: 0 | H144: 0
A145: Gasdisponering - elproduktionsanlæg, Konstruktioner | B145: PE | C145: 60 | D145: 0 | E145: 0 | F145: 0 | G145: 0 | H145: 0
A146: Gasdisponering - elproduktionsanlæg, Mek/EL | B146: PE | C146: 20 | D146: 0 | E146: 0 | F146: 0 | G146: 0 | H146: 0
A147: Gasdisponering - elproduktionsanlæg, SRO | B147: PE | C147: 10 | D147: 0 | E147: 0 | F147: 0 | G147: 0 | H147: 0
A148: Gasrensning - Aktivt kulfilter | B148: m3/t | C148: 15 | D148: 0 | E148: 0 | F148: 0 | G148: 0 | H148: 0
A149: Gasrensning - Biologisk skrubber | B149: m3/t | C149: 15 | D149: 0 | E149: 0 | F149: 0 | G149: 0 | H149: 0
A150: Opgraderingsanlæg - Membran | B150: m3/t | C150: 15 | D150: 0 | E150: 0 | F150: 0 | G150: 0 | H150: 0
A151: Varmeproduktionsanlæg | B151: m3/t | C151: 15 | D151: 0 | E151: 0 | F151: 0 | G151: 0 | H151: 0
A152: Slutafvanding, slam - lavteknologisk (slambede), Konstruktioner | B152: PE | C152: 60 | D152: 0 | E152: 0 | F152: 0 | G152: 0 | H152: 0
A153: Slutafvanding, slam - lavteknologisk (slambede), Mek/EL | B153: PE | C153: 20 | D153: 0 | E153: 0 | F153: 0 | G153: 0 | H153: 0
A154: Slutafvanding, slam - lavteknologisk (slambede), SRO | B154: PE | C154: 10 | D154: 0 | E154: 0 | F154: 0 | G154: 0 | H154: 0
A155: Slutafvanding, slam - højteknologisk (centrifuger), Konstruktioner | B155: PE | C155: 60 | D155: 9660 | E155: 9660 | F155: 9660 | G155: 0 | H155: 0
A156: Slutafvanding, slam - højteknologisk (centrifuger), Mek/El | B156: PE | C156: 20 | D156: 9660 | E156: 9660 | F156: 9660 | G156: 0 | H156: 0 | I156: Centrifuge udskiftet med Tromleafvander E2024
A157: Slutafvanding, slam - højteknologisk (centrifuger), SRO | B157: PE | C157: 10 | D157: 9660 | E157: 9660 | F157: 9660 | G157: 0 | H157: 0
A158: Renseanlæg >= 5.000 PE, Slamdisponering
A159: Slutdisponering, slam - lavteknologisk (slammineralisering), Konstruktioner | B159: PE | C159: 60 | D159: 0 | E159: 0 | F159: 0 | G159: 0 | H159: 0
A160: Slutdisponering, slam - lavteknologisk (slammineralisering), Mek/EL | B160: PE | C160: 20 | D160: 0 | E160: 0 | F160: 0 | G160: 0 | H160: 0
A161: Slutdisponering, slam - lavteknologisk (slammineralisering), SRO | B161: PE | C161: 10 | D161: 0 | E161: 0 | F161: 0 | G161: 0 | H161: 0
A162: Slutdisponering, slam - højteknologisk (slamtørring), Konstruktioner | B162: PE | C162: 60 | D162: 0 | E162: 0 | F162: 0 | G162: 0 | H162: 0
A163: Slutdisponering, slam - højteknologisk (slamtørring), Mek/EL | B163: PE | C163: 20 | D163: 0 | E163: 0 | F163: 0 | G163: 0 | H163: 0
A164: Slutdisponering, slam - højteknologisk (slamtørring), SRO | B164: PE | C164: 10 | D164: 0 | E164: 0 | F164: 0 | G164: 0 | H164: 0
A165: Slutdisponering, slam - højteknologisk (slamtørring og -forbrænding), Konstruktioner | B165: PE | C165: 60 | D165: 0 | E165: 0 | F165: 0 | G165: 0 | H165: 0
A166: Slutdisponering, slam - højteknologisk (slamtørring og -forbrænding), Mek/EL | B166: PE | C166: 20 | D166: 0 | E166: 0 | F166: 0 | G166: 0 | H166: 0
A167: Slutdisponering, slam - højteknologisk (slamtørring og -forbrænding), SRO | B167: PE | C167: 10 | D167: 0 | E167: 0 | F167: 0 | G167: 0 | H167: 0
A168: Renseanlæg 4
A169: Mindre renseanlæg
A170: Mindre renseanlæg < 5.000 PE | B170: PE | C170: 40 | D170: 0 | E170: 0 | F170: 0 | G170: 0 | H170: 0 | I170: Nedlagt renseanlæg
A171: Renseanlæg >= 5.000 PE, Vandbehandling
A172: Indløb med riste, Konstruktioner | B172: PE | C172: 60 | D172: 0 | E172: 0 | F172: 0 | G172: 0 | H172: 0
A173: Indløb med riste, Mek/EL | B173: PE | C173: 20 | D173: 0 | E173: 0 | F173: 0 | G173: 0 | H173: 0
A174: Indløb med riste, SRO | B174: PE | C174: 10 | D174: 0 | E174: 0 | F174: 0 | G174: 0 | H174: 0
A175: Sand- og fedtfang, Kontruktioner | B175: PE | C175: 60 | D175: 0 | E175: 0 | F175: 0 | G175: 0 | H175: 0
A176: Sand- og fedtfang, Mek/EL | B176: PE | C176: 20 | D176: 0 | E176: 0 | F176: 0 | G176: 0 | H176: 0
A177: Sand- og fedtfang, SRO | B177: PE | C177: 10 | D177: 0 | E177: 0 | F177: 0 | G177: 0 | H177: 0
A178: Forklaring, Konstruktioner | B178: PE | C178: 60 | D178: 0 | E178: 0 | F178: 0 | G178: 0 | H178: 0
A179: Forklaring, Mek/EL | B179: PE | C179: 20 | D179: 0 | E179: 0 | F179: 0 | G179: 0 | H179: 0
A180: Forklaring, SRO | B180: PE | C180: 10 | D180: 0 | E180: 0 | F180: 0 | G180: 0 | H180: 0
A181: Beluftningstanke, Konstruktioner | B181: PE | C181: 60 | D181: 0 | E181: 0 | F181: 0 | G181: 0 | H181: 0
A182: Beluftningstanke, Mek/EL | B182: PE | C182: 20 | D182: 0 | E182: 0 | F182: 0 | G182: 0 | H182: 0
A183: Beluftningstanke, SRO | B183: PE | C183: 10 | D183: 0 | E183: 0 | F183: 0 | G183: 0 | H183: 0
A184: Efterklaringstanke, Konstruktioner | B184: PE | C184: 60 | D184: 0 | E184: 0 | F184: 0 | G184: 0 | H184: 0
A185: Efterklaringstanke, Mek/El | B185: PE | C185: 20 | D185: 0 | E185: 0 | F185: 0 | G185: 0 | H185: 0
A186: Efterklaringstanke, SRO | B186: PE | C186: 10 | D186: 0 | E186: 0 | F186: 0 | G186: 0 | H186: 0
A187: Efterbehandlingsanlæg (sandfilter), Konstruktioner | B187: PE | C187: 60 | D187: 0 | E187: 0 | F187: 0 | G187: 0 | H187: 0
A188: Efterbehandlingsanlæg (sandfilter), Mek/EL | B188: PE | C188: 20 | D188: 0 | E188: 0 | F188: 0 | G188: 0 | H188: 0
A189: Efterbehandlingsanlæg (sandfilter), SRO | B189: PE | C189: 10 | D189: 0 | E189: 0 | F189: 0 | G189: 0 | H189: 0
A190: Renseanlæg >= 5.000 PE, Slambehandling
A191: Forafvanding, slam, Konstruktion | B191: PE | C191: 60 | D191: 0 | E191: 0 | F191: 0 | G191: 0 | H191: 0
A192: Forafvanding, slam, Mek/EL | B192: PE | C192: 20 | D192: 0 | E192: 0 | F192: 0 | G192: 0 | H192: 0
A193: Forafvanding, slam, SRO | B193: PE | C193: 10 | D193: 0 | E193: 0 | F193: 0 | G193: 0 | H193: 0
A194: Rådnetanke, slam, Konstruktioner | B194: PE | C194: 60 | D194: 0 | E194: 0 | F194: 0 | G194: 0 | H194: 0
A195: Rådnetanke, slam, Mek/EL | B195: PE | C195: 20 | D195: 0 | E195: 0 | F195: 0 | G195: =IF(D195="",IF(E195>0,"Ny data",IF(E195="","",0)),IF(D195=0,IF(E195=0,0,"Ny data"),(E195-D195)/D195)) -> 0 | H195: =IF(E195="",IF(F195>0,"Ny data",IF(F195="","",0)),IF(E195=0,IF(F195=0,0,"Ny data"),(F195-E195)/E195)) -> 0
A196: Rådnetanke, slam, SRO | B196: PE | C196: 10 | D196: 0 | E196: 0 | F196: 0 | G196: 0 | H196: 0
A197: Gasdisponering, Konstruktioner | B197: PE | C197: 60 | D197: 0 | E197: 0 | F197: 0 | G197: 0 | H197: 0
A198: Gasdisponering, Mek/EL | B198: PE | C198: 20 | D198: 0 | E198: 0 | F198: 0 | G198: 0 | H198: 0
A199: Gasdisponering, SRO | B199: PE | C199: 10 | D199: 0 | E199: 0 | F199: 0 | G199: 0 | H199: 0
A200: Gasdisponering - elproduktionsanlæg, Konstruktioner | B200: PE | C200: 60 | D200: 0 | E200: 0 | F200: 0 | G200: 0 | H200: 0
A201: Gasdisponering - elproduktionsanlæg, Mek/EL | B201: PE | C201: 20 | D201: 0 | E201: 0 | F201: 0 | G201: 0 | H201: 0
... 351 more rows

Sheet Distributionsanlæg
A1: Distributionsanlæg | B1: Enhed | C1: Standard-levetid | D1: Samlet mængde per 31/12-2022 | E1: Samlet mængde per 31/12-2023 | F1: Samlet mængde per 31/12-2024 | G1: Afvigelse 2022-2023 | H1: Afvigelse 2023-2024 | I1: Bemærkninger
A3: Ledningsnet - Land | G3: =IF(D3="",IF(E3>0,"Ny data",IF(E3="","",0)),IF(D3=0,IF(E3=0,0,"Ny data"),(E3-D3)/D3)) ->  | H3: =IF(E3="",IF(F3>0,"Ny data",IF(F3="","",0)),IF(E3=0,IF(F3=0,0,"Ny data"),(F3-E3)/E3)) -> 
A4: Ledningsnet ≤ Ø 200 mm | B4: meter | C4: 75 | D4: 261252.7006 | E4: 262600.4515 | F4: 268961.4217 | G4: 0.005158801931 | H4: 0.02422299812
A5: Ø 200 mm < Ledningsnet ≤ Ø 500 mm | B5: meter | C5: 75 | D5: 407444.96 | E5: 407425.66 | F5: 408422.8 | G5: -4.736836112e-05 | H5: 0.002447415806
A6: Ø 500 mm < Ledningsnet ≤ Ø 800 mm | B6: meter | C6: 75 | D6: 26705.76 | E6: 27148.99 | F6: 29427.97 | G6: 0.0165967941 | H6: 0.08394345425
A7: Ø 800 mm < Ledningsnet ≤ Ø 1000 mm | B7: meter | C7: 75 | D7: 6540.82 | E7: 6721.86 | F7: 8256.77 | G7: 0.0276784868 | H7: 0.2283460233 | I7: Vorup N
A8: Ø 1000 mm < Ledningsnet ≤ Ø 1200 mm | B8: meter | C8: 75 | D8: 5809.17 | E8: 5909.85 | F8: 6128.62 | G8: 0.01733121943 | H8: 0.03701786001
A9: Ø 1200 mm < Ledningsnet ≤ Ø 1600 mm | B9: meter | C9: 75 | D9: 3423.48 | E9: 3423.48 | F9: 3541.93 | G9: 0 | H9: 0.03459929662
A10: Ledningsnet > Ø 1600 mm (rørbassiner og transportledninger) | B10: meter | C10: 75 | D10: 755.1 | E10: 755.1 | F10: 755.1 | G10: 0 | H10: 0
A11: Strømpeforing ≤ Ø 200 mm | B11: meter | C11: 50 | D11: 3384.08 | E11: 3668.06 | F11: 4794.5 | G11: 0.08391645588 | H11: 0.3070942133 | I11: Klostervej Dronningborg, Kærgade, Odensevej, Stevnstrup
A12: Strømpeforing Ø 200 mm < Ledningsnet ≤ Ø 500 mm | B12: meter | C12: 50 | D12: 4640.93 | E12: 4871.35 | F12: 5247.75 | G12: 0.04964953145 | H12: 0.07726810843
A13: Strømpeforing Ø 500 mm < Ledningsnet ≤ Ø 800 mm | B13: meter | C13: 50 | D13: 193.2 | E13: 193.2 | F13: 193.2 | G13: 0 | H13: 0
A14: Strømpeforing Ø 800 mm < Ledningsnet ≤ Ø 1000 mm | B14: meter | C14: 50 | D14: 625.9 | E14: 625.9 | F14: 625.9 | G14: 0 | H14: 0
A15: Strømpeforing Ø 1000 mm < Ledningsnet ≤ Ø 1200 mm | B15: meter | C15: 50 | D15: 0 | E15: 0 | F15: 0 | G15: 0 | H15: 0
A16: Strømpeforing Ø 1200 mm < Ledningsnet ≤ Ø 1600 mm | B16: meter | C16: 50 | D16: 0 | E16: 0 | F16: 0 | G16: 0 | H16: 0
A17: Ledningsnet - By
A18: Ledningsnet ≤ Ø 200 mm | B18: meter | C18: 75 | D18: 352200.7939 | E18: 357122.3862 | F18: 362823.2298 | G18: 0.01397382501 | H18: 0.01596327712
A19: Ø 200 mm < Ledningsnet ≤ Ø 500 mm | B19: meter | C19: 75 | D19: 626385.55 | E19: 622921.15 | F19: 619981.33 | G19: -0.005530778927 | H19: -0.004719409511
A20: Ø 500 mm < Ledningsnet ≤ Ø 800 mm | B20: meter | C20: 75 | D20: 59524.27 | E20: 59524.27 | F20: 59272.47 | G20: 0 | H20: -0.004230207275
A21: Ø 800 mm < Ledningsnet ≤ Ø 1000 mm | B21: meter | C21: 75 | D21: 23501.55 | E21: 23457.17 | F21: 23442.02 | G21: -0.001888386085 | H21: -0.0006458579616
A22: Ø 1000 mm < Ledningsnet ≤ Ø 1200 mm | B22: meter | C22: 75 | D22: 10733.35 | E22: 10733.35 | F22: 10724.29 | G22: 0 | H22: -0.0008440980682
A23: Ø 1200 mm < Ledningsnet ≤ Ø 1600 mm | B23: meter | C23: 75 | D23: 9906.57 | E23: 9906.57 | F23: 9906.57 | G23: 0 | H23: 0
A24: Ledningsnet > Ø 1600 mm (rørbassiner og transportledninger) | B24: meter | C24: 75 | D24: 711.4 | E24: 711.4 | F24: 711.4 | G24: 0 | H24: 0
A25: Strømpeforing ≤ Ø 200 mm | B25: meter | C25: 50 | D25: 13460.33 | E25: 15841.68 | F25: 17378.78 | G25: 0.1769161677 | H25: 0.09702885048
A26: Strømpeforing Ø 200 mm < Ledningsnet ≤ Ø 500 mm | B26: meter | C26: 50 | D26: 24400.17 | E26: 24674.98 | F26: 24993.14 | G26: 0.01126262645 | H26: 0.01289403274
A27: Strømpeforing Ø 500 mm < Ledningsnet ≤ Ø 800 mm | B27: meter | C27: 50 | D27: 4558.61 | E27: 4558.61 | F27: 4558.61 | G27: 0 | H27: 0
A28: Strømpeforing Ø 800 mm < Ledningsnet ≤ Ø 1000 mm | B28: meter | C28: 50 | D28: 107.03 | E28: 107.03 | F28: 107.03 | G28: 0 | H28: 0
A29: Strømpeforing Ø 1000 mm < Ledningsnet ≤ Ø 1200 mm | B29: meter | C29: 50 | D29: 0 | E29: 0 | F29: 0 | G29: 0 | H29: 0
A30: Strømpeforing Ø 1200 mm < Ledningsnet ≤ Ø 1600 mm | B30: meter | C30: 50 | D30: 402.43 | E30: 402.43 | F30: 402.43 | G30: 0 | H30: 0
A31: Ledningsnet - City
A32: Ledningsnet ≤ Ø 200 mm | B32: meter | C32: 75 | D32: 22893.36553 | E32: 23249.04233 | F32: 23673.88847 | G32: 0.01553623919 | H32: 0.01827370495
A33: Ø 200 mm < Ledningsnet ≤ Ø 500 mm | B33: meter | C33: 75 | D33: 44365.19 | E33: 44002.44 | F33: 43418.54 | G33: -0.00817645546 | H33: -0.01326971868
A34: Ø 500 mm < Ledningsnet ≤ Ø 800 mm | B34: meter | C34: 75 | D34: 6974.33 | E34: 6974.33 | F34: 6974.33 | G34: 0 | H34: 0
A35: Ø 800 mm < Ledningsnet ≤ Ø 1000 mm | B35: meter | C35: 75 | D35: 4564.04 | E35: 4564.04 | F35: 4564.04 | G35: 0 | H35: 0
A36: Ø 1000 mm < Ledningsnet ≤ Ø 1200 mm | B36: meter | C36: 75 | D36: 1826.28 | E36: 1826.28 | F36: 1826.28 | G36: 0 | H36: 0
A37: Ø 1200 mm < Ledningsnet ≤ Ø 1600 mm | B37: meter | C37: 75 | D37: 1502.41 | E37: 1502.41 | F37: 1502.41 | G37: 0 | H37: 0
A38: Ledningsnet > Ø 1600 mm (rørbassiner og transportledninger) | B38: meter | C38: 75 | D38: 81.17 | E38: 81.17 | F38: 81.17 | G38: 0 | H38: 0
A39: Strømpeforing ≤ Ø 200 mm | B39: meter | C39: 50 | D39: 1496.21 | E39: 1496.21 | F39: 1614.59 | G39: 0 | H39: 0.07911990964
A40: Strømpeforing Ø 200 mm < Ledningsnet ≤ Ø 500 mm | B40: meter | C40: 50 | D40: 9462.2 | E40: 9438.18 | F40: 9369.07 | G40: -0.002538521697 | H40: -0.007322386308
A41: Strømpeforing Ø 500 mm < Ledningsnet ≤ Ø 800 mm | B41: meter | C41: 50 | D41: 1161.32 | E41: 1161.32 | F41: 1161.32 | G41: 0 | H41: 0
A42: Strømpeforing Ø 800 mm < Ledningsnet ≤ Ø 1000 mm | B42: meter | C42: 50 | D42: 96.87 | E42: 96.87 | F42: 96.87 | G42: 0 | H42: 0
A43: Strømpeforing Ø 1000 mm < Ledningsnet ≤ Ø 1200 mm | B43: meter | C43: 50 | D43: 0 | E43: 0 | F43: 0 | G43: 0 | H43: 0
A44: Strømpeforing Ø 1200 mm < Ledningsnet ≤ Ø 1600 mm | B44: meter | C44: 50 | D44: 0 | E44: 0 | F44: 0 | G44: 0 | H44: 0
A45: Ledningsnet - Indre city
A46: Ledningsnet ≤ Ø 200 mm | B46: meter | C46: 75 | D46: 0 | E46: 0 | F46: 0 | G46: 0 | H46: 0
A47: Ø 200 mm < Ledningsnet ≤ Ø 500 mm | B47: meter | C47: 75 | D47: 0 | E47: 0 | F47: 0 | G47: 0 | H47: 0
A48: Ø 500 mm < Ledningsnet ≤ Ø 800 mm | B48: meter | C48: 75 | D48: 0 | E48: 0 | F48: 0 | G48: 0 | H48: 0
A49: Ø 800 mm < Ledningsnet ≤ Ø 1000 mm | B49: meter | C49: 75 | D49: 0 | E49: 0 | F49: 0 | G49: 0 | H49: 0
A50: Ø 1000 mm < Ledningsnet ≤ Ø 1200 mm | B50: meter | C50: 75 | D50: 0 | E50: 0 | F50: 0 | G50: 0 | H50: 0
A51: Ø 1200 mm < Ledningsnet ≤ Ø 1600 mm | B51: meter | C51: 75 | D51: 0 | E51: 0 | F51: 0 | G51: 0 | H51: 0
A52: Ledningsnet > Ø 1600 mm (rørbassiner og transportledninger) | B52: meter | C52: 75 | D52: 0 | E52: 0 | F52: 0 | G52: 0 | H52: 0
A53: Strømpeforing ≤ Ø 200 mm | B53: meter | C53: 50 | D53: 0 | E53: 0 | F53: 0 | G53: 0 | H53: 0
A54: Strømpeforing Ø 200 mm < Ledningsnet ≤ Ø 500 mm | B54: meter | C54: 50 | D54: 0 | E54: 0 | F54: 0 | G54: 0 | H54: 0
A55: Strømpeforing Ø 500 mm < Ledningsnet ≤ Ø 800 mm | B55: meter | C55: 50 | D55: 0 | E55: 0 | F55: 0 | G55: 0 | H55: 0
A56: Strømpeforing Ø 800 mm < Ledningsnet ≤ Ø 1000 mm | B56: meter | C56: 50 | D56: 0 | E56: 0 | F56: 0 | G56: 0 | H56: 0
A57: Strømpeforing Ø 1000 mm < Ledningsnet ≤ Ø 1200 mm | B57: meter | C57: 50 | D57: 0 | E57: 0 | F57: 0 | G57: 0 | H57: 0
A58: Strømpeforing Ø 1200 mm < Ledningsnet ≤ Ø 1600 mm | B58: meter | C58: 50 | D58: 0 | E58: 0 | F58: 0 | G58: 0 | H58: 0
A59: Brønde og stik, ledningsnet - Land
A60: Brønde | B60: stk. | C60: 75 | D60: 7372 | E60: 7447.753748 | F60: 7542.825866 | G60: 0.01027587462 | H60: 0.01276520701
A61: Stik | B61: stk. | C61: 75 | D61: 1854 | E61: 1890.196915 | F61: 1933.711955 | G61: 0.01952368652 | H61: 0.02302143231
A62: Brønde og stik, ledningsnet - By
A63: Brønde | B63: stk. | C63: 75 | D63: 43740 | E63: 44189.86761 | F63: 44753.96042 | G63: 0.01028503909 | H63: 0.01276520701
A64: Stik | B64: stk. | C64: 75 | D64: 42010 | E64: 42826.20603 | F64: 43812.12663 | G64: 0.01942885099 | H64: 0.02302143231
A65: Brønde og stik, ledningsnet - City
A66: Brønde | B66: stk. | C66: 75 | D66: 21854 | E66: 22078.37864 | F66: 22360.21372 | G66: 0.01026716585 | H66: 0.01276520701
A67: Stik | B67: stk. | C67: 75 | D67: 3049 | E67: 3108.597055 | F67: 3180.161412 | G67: =IF(D67="",IF(E67>0,"Ny data",IF(E67="","",0)),IF(D67=0,IF(E67=0,0,"Ny data"),(E67-D67)/D67)) -> 0.01954642671 | H67: =IF(E67="",IF(F67>0,"Ny data",IF(F67="","",0)),IF(E67=0,IF(F67=0,0,"Ny data"),(F67-E67)/E67)) -> 0.02302143231
A68: Brønde og stik, ledningsnet - Indre city
A69: Brønde | B69: stk. | C69: 75 | D69: 0 | E69: 0 | F69: 0 | G69: 0 | H69: 0
A70: Stik | B70: stk. | C70: 75 | D70: 0 | E70: 0 | F70: 0 | G70: 0 | H70: 0
A71: Små pumpestationer (<100 l/s) inkl. SRO-anlæg - Land
A72: Tryksatte minipumpestationer (husstandssystemer) | B72: stk. | C72: 30 | D72: 203 | E72: 205 | F72: 205 | G72: 0.009852216749 | H72: 0 | I72: 2 nye i 2023
A73: Pumpestationer i brønde (< 6,25 m2), Konstruktioner | B73: stk. | C73: 50 | D73: 78 | E73: 79 | F73: 80 | G73: 0.01282051282 | H73: 0.01265822785 | I73: Hus fjernet på PR04 og PR13H
A74: Pumpestationer i brønde (< 6,25 m2), Mek/EL | B74: stk. | C74: 20 | D74: 78 | E74: 79 | F74: 80 | G74: 0.01282051282 | H74: 0.01265822785 | I74: Hus fjernet på PR04 og PR13H
A75: Pumpestationer i brønde (< 6,25 m2), SRO | B75: stk. | C75: 10 | D75: 76 | E75: 77 | F75: 78 | G75: 0.01315789474 | H75: 0.01298701299 | I75: Hus fjernet på PR04 og PR13H
A76: Pumpestationer m. overbygning (< 20 m2), Konstruktioner | B76: stk. | C76: 50 | D76: 11 | E76: 10 | F76: 9 | G76: -0.09090909091 | H76: -0.1 | I76: Hus fjernet på PR04 og PR13H
A77: Pumpestationer m. overbygning (< 20 m2), Mek/EL | B77: stk. | C77: 20 | D77: 11 | E77: 10 | F77: 9 | G77: -0.09090909091 | H77: -0.1 | I77: Hus fjernet på PR04 og PR13H
A78: Pumpestationer m. overbygning (< 20 m2), SRO | B78: stk. | C78: 10 | D78: 11 | E78: 10 | F78: 9 | G78: -0.09090909091 | H78: -0.1 | I78: Hus fjernet på PR04 og PR13H
A79: Pumpestationer i underjordiske bygværker (<50 m2), Konstruktioner | B79: stk. | C79: 50 | D79: 1 | E79: 1 | F79: 1 | G79: 0 | H79: 0
A80: Pumpestationer i underjordiske bygværker (<50 m2), Mek/El | B80: stk. | C80: 20 | D80: 1 | E80: 1 | F80: 1 | G80: 0 | H80: 0
A81: Pumpestationer i underjordiske bygværker (<50 m2), SRO | B81: stk. | C81: 10 | D81: 1 | E81: 1 | F81: 1 | G81: 0 | H81: 0
A82: Små pumpestationer (<100 l/s) inkl. SRO-anlæg - By
A83: Tryksatte minipumpestationer (husstandssystemer) | B83: stk. | C83: 30 | D83: 24 | E83: 24 | F83: 26 | G83: 0 | H83: 0.08333333333 | I83: 2 nye i 2024
A84: Pumpestationer i brønde (< 6,25 m2), Konstruktioner | B84: stk. | C84: 50 | D84: 38 | E84: 39 | F84: 40 | G84: 0.02631578947 | H84: 0.02564102564 | I84: Hus fjernet på PR41C + Ny PST PR01A
A85: Pumpestationer i brønde (< 6,25 m2), Mek/EL | B85: stk. | C85: 20 | D85: 38 | E85: 39 | F85: 40 | G85: 0.02631578947 | H85: 0.02564102564 | I85: Hus fjernet på PR41C + Ny PST PR01A
A86: Pumpestationer i brønde (< 6,25 m2), SRO | B86: stk. | C86: 10 | D86: 33 | E86: 35 | F86: 36 | G86: 0.06060606061 | H86: 0.02857142857 | I86: Hus fjernet på PR41C + Ny PST PR01A
A87: Pumpestationer m. overbygning (< 20 m2), Konstruktioner | B87: stk. | C87: 50 | D87: 3 | E87: 2 | F87: 1 | G87: -0.3333333333 | H87: -0.5 | I87: Hus fjernet på PR41C og PR27G nedlagt
A88: Pumpestationer m. overbygning (< 20 m2), Mek/EL | B88: stk. | C88: 20 | D88: 3 | E88: 2 | F88: 1 | G88: -0.3333333333 | H88: -0.5 | I88: Hus fjernet på PR41C og PR27G nedlagt
A89: Pumpestationer m. overbygning (< 20 m2), SRO | B89: stk. | C89: 10 | D89: 3 | E89: 2 | F89: 1 | G89: -0.3333333333 | H89: -0.5 | I89: Hus fjernet på PR41C og PR27G nedlagt
A90: Pumpestationer i underjordiske bygværker (<50 m2), Konstruktioner | B90: stk. | C90: 50 | D90: 0 | E90: 0 | F90: 0 | G90: 0 | H90: 0
A91: Pumpestationer i underjordiske bygværker (<50 m2), Mek/El | B91: stk. | C91: 20 | D91: 0 | E91: 0 | F91: 0 | G91: 0 | H91: 0
A92: Pumpestationer i underjordiske bygværker (<50 m2), SRO | B92: stk. | C92: 10 | D92: 0 | E92: 0 | F92: 0 | G92: 0 | H92: 0
A93: Små pumpestationer (<100 l/s) inkl. SRO-anlæg - City
A94: Tryksatte minipumpestationer (husstandssystemer) | B94: stk. | C94: 30 | D94: 2 | E94: 2 | F94: 2 | G94: 0 | H94: 0
A95: Pumpestationer i brønde (< 6,25 m2), Konstruktioner | B95: stk. | C95: 50 | D95: 1 | E95: 1 | F95: 1 | G95: 0 | H95: 0
A96: Pumpestationer i brønde (< 6,25 m2), Mek/EL | B96: stk. | C96: 20 | D96: 1 | E96: 1 | F96: 1 | G96: 0 | H96: 0
A97: Pumpestationer i brønde (< 6,25 m2), SRO | B97: stk. | C97: 10 | D97: 1 | E97: 1 | F97: 1 | G97: 0 | H97: 0
A98: Pumpestationer m. overbygning (< 20 m2), Konstruktioner | B98: stk. | C98: 50 | D98: 1 | E98: 1 | F98: 1 | G98: 0 | H98: 0
A99: Pumpestationer m. overbygning (< 20 m2), Mek/EL | B99: stk. | C99: 20 | D99: 1 | E99: 1 | F99: 1 | G99: 0 | H99: 0
A100: Pumpestationer m. overbygning (< 20 m2), SRO | B100: stk. | C100: 10 | D100: 1 | E100: 1 | F100: 1 | G100: 0 | H100: 0
A101: Pumpestationer i underjordiske bygværker (<50 m2), Konstruktioner | B101: stk. | C101: 50 | D101: 0 | E101: 0 | F101: 0 | G101: 0 | H101: 0
A102: Pumpestationer i underjordiske bygværker (<50 m2), Mek/El | B102: stk. | C102: 20 | D102: 0 | E102: 0 | F102: 0 | G102: 0 | H102: 0
A103: Pumpestationer i underjordiske bygværker (<50 m2), SRO | B103: stk. | C103: 10 | D103: 0 | E103: 0 | F103: 0 | G103: 0 | H103: 0
A104: Små pumpestationer (<100 l/s) inkl. SRO-anlæg - Indre city
A105: Tryksatte minipumpestationer (husstandssystemer) | B105: stk. | C105: 30 | D105: 0 | E105: 0 | F105: 0 | G105: 0 | H105: 0
A106: Pumpestationer i brønde (< 6,25 m2), Konstruktioner | B106: stk. | C106: 50 | D106: 0 | E106: 0 | F106: 0 | G106: 0 | H106: 0
A107: Pumpestationer i brønde (< 6,25 m2), Mek/EL | B107: stk. | C107: 20 | D107: 0 | E107: 0 | F107: 0 | G107: 0 | H107: 0
A108: Pumpestationer i brønde (< 6,25 m2), SRO | B108: stk. | C108: 10 | D108: 0 | E108: 0 | F108: 0 | G108: 0 | H108: 0
A109: Pumpestationer m. overbygning (< 20 m2), Konstruktioner | B109: stk. | C109: 50 | D109: 0 | E109: 0 | F109: 0 | G109: 0 | H109: 0
A110: Pumpestationer m. overbygning (< 20 m2), Mek/EL | B110: stk. | C110: 20 | D110: 0 | E110: 0 | F110: 0 | G110: 0 | H110: 0
A111: Pumpestationer m. overbygning (< 20 m2), SRO | B111: stk. | C111: 10 | D111: 0 | E111: 0 | F111: 0 | G111: 0 | H111: 0
A112: Pumpestationer i underjordiske bygværker (<50 m2), Konstruktioner | B112: stk. | C112: 50 | D112: 0 | E112: 0 | F112: 0 | G112: 0 | H112: 0
A113: Pumpestationer i underjordiske bygværker (<50 m2), Mek/El | B113: stk. | C113: 20 | D113: 0 | E113: 0 | F113: 0 | G113: 0 | H113: 0
A114: Pumpestationer i underjordiske bygværker (<50 m2), SRO | B114: stk. | C114: 10 | D114: 0 | E114: 0 | F114: 0 | G114: 0 | H114: 0
A115: Store pumpestationer: inkl. SRO-anlæg - Land
A116: Kælder | B116: m2 | C116: 75 | D116: 314.22 | E116: 269.4 | F116: 284.5 | G116: -0.1426389154 | H116: 0.05605048255 | I116: PR01 ligger nu i By-zone
A117: Pumpeinstallation Miljøklasse A (100-300 l/s) - Mek/EL | B117: stk. | C117: 20 | D117: 7 | E117: =7+16 -> 23 | F117: =7+16 -> 23 | G117: 2.285714286 | H117: 0 | I117: Tidligere har kun PST med hus været indberettet som Miljøklasse A. Dette ændres nu jf. e-mail fra Emil Heesche (ehe@kfst.dk) d. 31-07-2024. PL17 nedgraderet (nye pumper)
A118: Pumpeinstallation Miljøklasse A (100-300 l/s) - SRO | B118: stk. | C118: 10 | D118: 7 | E118: =7+16 -> 23 | F118: =7+16 -> 23 | G118: 2.285714286 | H118: 0 | I118: Tidligere har kun PST med hus været indberettet som Miljøklasse A. Dette ændres nu jf. e-mail fra Emil Heesche (ehe@kfst.dk) d. 31-07-2024. PL17 nedgraderet (nye pumper)
A119: Pumpeinstallation Miljøklasse A (300-600 l/s) - Mek/EL | B119: stk. | C119: 20 | D119: 4 | E119: 4 | F119: =4+1 -> 5 | G119: 0 | H119: 0.25 | I119: PR80 idriftssat i 2024
A120: Pumpeinstallation Miljøklasse A (300-600 l/s) - SRO | B120: stk. | C120: 10 | D120: 4 | E120: 4 | F120: =4+1 -> 5 | G120: 0 | H120: 0.25 | I120: PR80 idriftssat i 2024
A121: Pumpeinstallation Miljøklasse A (600-1.000 l/s) - Mek/EL | B121: stk. | C121: 20 | D121: 1 | E121: 1 | F121: 1 | G121: 0 | H121: 0
A122: Pumpeinstallation Miljøklasse A (600-1.000 l/s) - SRO | B122: stk. | C122: 10 | D122: 1 | E122: 1 | F122: 1 | G122: 0 | H122: 0
A123: Pumpeinstallation Miljøklasse A (1.000-1.500 l/s) - Mek/EL | B123: stk. | C123: 20 | D123: 2 | E123: 1 | F123: 1 | G123: -0.5 | H123: 0 | I123: PR01 ligger nu i By-zone
A124: Pumpeinstallation Miljøklasse A (1.000-1.500 l/s) - SRO | B124: stk. | C124: 10 | D124: 2 | E124: 1 | F124: 1 | G124: -0.5 | H124: 0 | I124: PR01 ligger nu i By-zone
A125: Pumpeinstallation Miljøklasse B (100-300 l/s) - Mek/EL | B125: stk. | C125: 20 | D125: 17 | E125: 0 | F125: 0 | G125: -1 | H125: 0 | I125: Tidligere har kun PST med hus været indberettet som Miljøklasse A. Dette ændres nu jf. e-mail fra Emil Heesche (ehe@kfst.dk) d. 31-07-2024
A126: Pumpeinstallation Miljøklasse B (100-300 l/s) - SRO | B126: stk. | C126: 10 | D126: 17 | E126: 0 | F126: 0 | G126: -1 | H126: 0 | I126: Tidligere har kun PST med hus været indberettet som Miljøklasse A. Dette ændres nu jf. e-mail fra Emil Heesche (ehe@kfst.dk) d. 31-07-2024
A127: Pumpeinstallation Miljøklasse B (300-600 l/s) - Mek/EL | B127: stk. | C127: 20 | D127: 0 | E127: 0 | F127: 0 | G127: 0 | H127: 0
A128: Pumpeinstallation Miljøklasse B (300-600 l/s) - SRO | B128: stk. | C128: 10 | D128: 0 | E128: 0 | F128: 0 | G128: 0 | H128: 0
A129: Pumpeinstallation Miljøklasse B (600-1.000 l/s) - Mek/EL | B129: stk. | C129: 20 | D129: 0 | E129: 0 | F129: 0 | G129: 0 | H129: 0
A130: Pumpeinstallation Miljøklasse B (600-1.000 l/s) - SRO | B130: stk. | C130: 10 | D130: 0 | E130: 0 | F130: 0 | G130: 0 | H130: 0
A131: Pumpeinstallation Miljøklasse B (1.000-1.500 l/s) - Mek/EL | B131: stk. | C131: 20 | D131: 0 | E131: 0 | F131: 0 | G131: =IF(D131="",IF(E131>0,"Ny data",IF(E131="","",0)),IF(D131=0,IF(E131=0,0,"Ny data"),(E131-D131)/D131)) -> 0 | H131: =IF(E131="",IF(F131>0,"Ny data",IF(F131="","",0)),IF(E131=0,IF(F131=0,0,"Ny data"),(F131-E131)/E131)) -> 0
A132: Pumpeinstallation Miljøklasse B (1.000-1.500 l/s) - SRO | B132: stk. | C132: 10 | D132: 0 | E132: 0 | F132: 0 | G132: 0 | H132: 0
A133: Overbygning | B133: m2 | C133: 75 | D133: 1312 | E133: 1131.3 | F133: 1131.3 | G133: -0.1377286585 | H133: 0 | I133: PR01 ligger nu i By-zone
A134: Store pumpestationer: inkl. SRO-anlæg - By
A135: Kælder | B135: m2 | C135: 75 | D135: 265.19 | E135: 307.5 | F135: 307.5 | G135: 0.1595459859 | H135: 0 | I135: PR01 ligger nu i By-zone
A136: Pumpeinstallation Miljøklasse A (100-300 l/s) - Mek/EL | B136: stk. | C136: 20 | D136: 3 | E136: =4+4 -> 8 | F136: =4+4 -> 8 | G136: 1.666666667 | H136: 0 | I136: Tidligere har kun PST med hus været indberettet som Miljøklasse A. Dette ændres nu jf. e-mail fra Emil Heesche (ehe@kfst.dk) d. 31-07-2024
A137: Pumpeinstallation Miljøklasse A (100-300 l/s) - SRO | B137: stk. | C137: 10 | D137: 3 | E137: =4+4 -> 8 | F137: =4+4 -> 8 | G137: 1.666666667 | H137: 0 | I137: Tidligere har kun PST med hus været indberettet som Miljøklasse A. Dette ændres nu jf. e-mail fra Emil Heesche (ehe@kfst.dk) d. 31-07-2024
A138: Pumpeinstallation Miljøklasse A (300-600 l/s) - Mek/EL | B138: stk. | C138: 20 | D138: 1 | E138: 1 | F138: 1 | G138: 0 | H138: 0
A139: Pumpeinstallation Miljøklasse A (300-600 l/s) - SRO | B139: stk. | C139: 10 | D139: 1 | E139: 1 | F139: 1 | G139: 0 | H139: 0
A140: Pumpeinstallation Miljøklasse A (600-1.000 l/s) - Mek/EL | B140: stk. | C140: 20 | D140: 3 | E140: 3 | F140: 3 | G140: 0 | H140: 0
A141: Pumpeinstallation Miljøklasse A (600-1.000 l/s) - SRO | B141: stk. | C141: 10 | D141: 3 | E141: 3 | F141: 3 | G141: 0 | H141: 0
A142: Pumpeinstallation Miljøklasse A (1.000-1.500 l/s) - Mek/EL | B142: stk. | C142: 20 | D142: 2 | E142: 3 | F142: 3 | G142: 0.5 | H142: 0 | I142: PR01 ligger nu i By-zone
A143: Pumpeinstallation Miljøklasse A (1.000-1.500 l/s) - SRO | B143: stk. | C143: 10 | D143: 2 | E143: 3 | F143: 3 | G143: 0.5 | H143: 0 | I143: PR01 ligger nu i By-zone
A144: Pumpeinstallation Miljøklasse B (100-300 l/s) - Mek/EL | B144: stk. | C144: 20 | D144: 5 | E144: 0 | F144: 0 | G144: -1 | H144: 0 | I144: Tidligere har kun PST med hus været indberettet som Miljøklasse A. Dette ændres nu jf. e-mail fra Emil Heesche (ehe@kfst.dk) d. 31-07-2024
A145: Pumpeinstallation Miljøklasse B (100-300 l/s) - SRO | B145: stk. | C145: 10 | D145: 5 | E145: 0 | F145: 0 | G145: -1 | H145: 0 | I145: Tidligere har kun PST med hus været indberettet som Miljøklasse A. Dette ændres nu jf. e-mail fra Emil Heesche (ehe@kfst.dk) d. 31-07-2024
A146: Pumpeinstallation Miljøklasse B (300-600 l/s) - Mek/EL | B146: stk. | C146: 20 | D146: 0 | E146: 0 | F146: 0 | G146: 0 | H146: 0
A147: Pumpeinstallation Miljøklasse B (300-600 l/s) - SRO | B147: stk. | C147: 10 | D147: 0 | E147: 0 | F147: 0 | G147: 0 | H147: 0
A148: Pumpeinstallation Miljøklasse B (600-1.000 l/s) - Mek/EL | B148: stk. | C148: 20 | D148: 0 | E148: 0 | F148: 0 | G148: 0 | H148: 0
A149: Pumpeinstallation Miljøklasse B (600-1.000 l/s) - SRO | B149: stk. | C149: 10 | D149: 0 | E149: 0 | F149: 0 | G149: 0 | H149: 0
A150: Pumpeinstallation Miljøklasse B (1.000-1.500 l/s) - Mek/EL | B150: stk. | C150: 20 | D150: 0 | E150: 0 | F150: 0 | G150: 0 | H150: 0
A151: Pumpeinstallation Miljøklasse B (1.000-1.500 l/s) - SRO | B151: stk. | C151: 10 | D151: 0 | E151: 0 | F151: 0 | G151: 0 | H151: 0
A152: Overbygning | B152: m2 | C152: 75 | D152: 867 | E152: 1062 | F152: 1062 | G152: 0.2249134948 | H152: 0 | I152: PR01 ligger nu i By-zone
A153: Store pumpestationer: inkl. SRO-anlæg - City
A154: Kælder | B154: m2 | C154: 75 | D154: 0 | E154: 0 | F154: 0 | G154: 0 | H154: 0
A155: Pumpeinstallation Miljøklasse A (100-300 l/s) - Mek/EL | B155: stk. | C155: 20 | D155: 0 | E155: 0 | F155: 0 | G155: 0 | H155: 0
A156: Pumpeinstallation Miljøklasse A (100-300 l/s) - SRO | B156: stk. | C156: 10 | D156: 0 | E156: 0 | F156: 0 | G156: 0 | H156: 0
A157: Pumpeinstallation Miljøklasse A (300-600 l/s) - Mek/EL | B157: stk. | C157: 20 | D157: 0 | E157: 0 | F157: 0 | G157: 0 | H157: 0
A158: Pumpeinstallation Miljøklasse A (300-600 l/s) - SRO | B158: stk. | C158: 10 | D158: 0 | E158: 0 | F158: 0 | G158: 0 | H158: 0
A159: Pumpeinstallation Miljøklasse A (600-1.000 l/s) - Mek/EL | B159: stk. | C159: 20 | D159: 0 | E159: 0 | F159: 0 | G159: 0 | H159: 0
A160: Pumpeinstallation Miljøklasse A (600-1.000 l/s) - SRO | B160: stk. | C160: 10 | D160: 0 | E160: 0 | F160: 0 | G160: 0 | H160: 0
A161: Pumpeinstallation Miljøklasse A (1.000-1.500 l/s) - Mek/EL | B161: stk. | C161: 20 | D161: 0 | E161: 0 | F161: 0 | G161: 0 | H161: 0
A162: Pumpeinstallation Miljøklasse A (1.000-1.500 l/s) - SRO | B162: stk. | C162: 10 | D162: 0 | E162: 0 | F162: 0 | G162: 0 | H162: 0
A163: Pumpeinstallation Miljøklasse B (100-300 l/s) - Mek/EL | B163: stk. | C163: 20 | D163: 0 | E163: 0 | F163: 0 | G163: 0 | H163: 0
A164: Pumpeinstallation Miljøklasse B (100-300 l/s) - SRO | B164: stk. | C164: 10 | D164: 0 | E164: 0 | F164: 0 | G164: 0 | H164: 0
A165: Pumpeinstallation Miljøklasse B (300-600 l/s) - Mek/EL | B165: stk. | C165: 20 | D165: 0 | E165: 0 | F165: 0 | G165: 0 | H165: 0
A166: Pumpeinstallation Miljøklasse B (300-600 l/s) - SRO | B166: stk. | C166: 10 | D166: 0 | E166: 0 | F166: 0 | G166: 0 | H166: 0
A167: Pumpeinstallation Miljøklasse B (600-1.000 l/s) - Mek/EL | B167: stk. | C167: 20 | D167: 0 | E167: 0 | F167: 0 | G167: 0 | H167: 0
A168: Pumpeinstallation Miljøklasse B (600-1.000 l/s) - SRO | B168: stk. | C168: 10 | D168: 0 | E168: 0 | F168: 0 | G168: 0 | H168: 0
A169: Pumpeinstallation Miljøklasse B (1.000-1.500 l/s) - Mek/EL | B169: stk. | C169: 20 | D169: 0 | E169: 0 | F169: 0 | G169: 0 | H169: 0
A170: Pumpeinstallation Miljøklasse B (1.000-1.500 l/s) - SRO | B170: stk. | C170: 10 | D170: 0 | E170: 0 | F170: 0 | G170: 0 | H170: 0
A171: Overbygning | B171: m2 | C171: 75 | D171: 0 | E171: 0 | F171: 0 | G171: 0 | H171: 0
A172: Store pumpestationer: inkl. SRO-anlæg - Indre city
A173: Kælder | B173: m2 | C173: 75 | D173: 0 | E173: 0 | F173: 0 | G173: 0 | H173: 0
A174: Pumpeinstallation Miljøklasse A (100-300 l/s) - Mek/EL | B174: stk. | C174: 20 | D174: 0 | E174: 0 | F174: 0 | G174: 0 | H174: 0
A175: Pumpeinstallation Miljøklasse A (100-300 l/s) - SRO | B175: stk. | C175: 10 | D175: 0 | E175: 0 | F175: 0 | G175: 0 | H175: 0
A176: Pumpeinstallation Miljøklasse A (300-600 l/s) - Mek/EL | B176: stk. | C176: 20 | D176: 0 | E176: 0 | F176: 0 | G176: 0 | H176: 0
A177: Pumpeinstallation Miljøklasse A (300-600 l/s) - SRO | B177: stk. | C177: 10 | D177: 0 | E177: 0 | F177: 0 | G177: 0 | H177: 0
A178: Pumpeinstallation Miljøklasse A (600-1.000 l/s) - Mek/EL | B178: stk. | C178: 20 | D178: 0 | E178: 0 | F178: 0 | G178: 0 | H178: 0
A179: Pumpeinstallation Miljøklasse A (600-1.000 l/s) - SRO | B179: stk. | C179: 10 | D179: 0 | E179: 0 | F179: 0 | G179: 0 | H179: 0
A180: Pumpeinstallation Miljøklasse A (1.000-1.500 l/s) - Mek/EL | B180: stk. | C180: 20 | D180: 0 | E180: 0 | F180: 0 | G180: 0 | H180: 0
A181: Pumpeinstallation Miljøklasse A (1.000-1.500 l/s) - SRO | B181: stk. | C181: 10 | D181: 0 | E181: 0 | F181: 0 | G181: 0 | H181: 0
A182: Pumpeinstallation Miljøklasse B (100-300 l/s) - Mek/EL | B182: stk. | C182: 20 | D182: 0 | E182: 0 | F182: 0 | G182: 0 | H182: 0
A183: Pumpeinstallation Miljøklasse B (100-300 l/s) - SRO | B183: stk. | C183: 10 | D183: 0 | E183: 0 | F183: 0 | G183: 0 | H183: 0
A184: Pumpeinstallation Miljøklasse B (300-600 l/s) - Mek/EL | B184: stk. | C184: 20 | D184: 0 | E184: 0 | F184: 0 | G184: 0 | H184: 0
A185: Pumpeinstallation Miljøklasse B (300-600 l/s) - SRO | B185: stk. | C185: 10 | D185: 0 | E185: 0 | F185: 0 | G185: 0 | H185: 0
A186: Pumpeinstallation Miljøklasse B (600-1.000 l/s) - Mek/EL | B186: stk. | C186: 20 | D186: 0 | E186: 0 | F186: 0 | G186: 0 | H186: 0
A187: Pumpeinstallation Miljøklasse B (600-1.000 l/s) - SRO | B187: stk. | C187: 10 | D187: 0 | E187: 0 | F187: 0 | G187: 0 | H187: 0
A188: Pumpeinstallation Miljøklasse B (1.000-1.500 l/s) - Mek/EL | B188: stk. | C188: 20 | D188: 0 | E188: 0 | F188: 0 | G188: 0 | H188: 0
A189: Pumpeinstallation Miljøklasse B (1.000-1.500 l/s) - SRO | B189: stk. | C189: 10 | D189: 0 | E189: 0 | F189: 0 | G189: 0 | H189: 0
A190: Overbygning | B190: m2 | C190: 75 | D190: 0 | E190: 0 | F190: 0 | G190: 0 | H190: 0
A191: Overløbsbygværker - Land
A192: Kælder (< 7 m2) | B192: stk. | C192: 75 | D192: 0 | E192: 0 | F192: 0 | G192: 0 | H192: 0
A193: Kælder (7 - 20 m2) | B193: m2 | C193: 75 | D193: 0 | E193: 0 | F193: 0 | G193: 0 | H193: 0
A194: Kælder (20 - 30 m2) | B194: m2 | C194: 75 | D194: 0 | E194: 0 | F194: 0 | G194: 0 | H194: 0
A195: Installationer (mindre end 7 m2) | B195: stk. | C195: 20 | D195: 46 | E195: =7+28+414-E196-E198-E200 -> 441 | F195: =7+29+419-F196-F198-F200 -> 447 | G195: =IF(D195="",IF(E195>0,"Ny data",IF(E195="","",0)),IF(D195=0,IF(E195=0,0,"Ny data"),(E195-D195)/D195)) -> 8.586956522 | H195: =IF(E195="",IF(F195>0,"Ny data",IF(F195="","",0)),IF(E195=0,IF(F195=0,0,"Ny data"),(F195-E195)/E195)) -> 0.01360544218 | I195: Definition ændret, så regnvandsudløb og interne overløb nu skal tælles med: Data baseret på sum af fordelerbygværker, reguleringsbygværker og udløb jf. Niras-udtræk fra ledningsdatabase
A196: Installationer, Miljøklasse A. (7-20 m2) - Mek/EL | B196: stk. | C196: 20 | D196: 5 | E196: 5 | F196: 5 | G196: 0 | H196: 0 | I196: Ikke revurderet i forhold til ovenstående (næppe de store ændringer)
A197: Installationer, Miljøklasse A. (7-20 m2) - SRO | B197: stk. | C197: 10 | D197: 1 | E197: 1 | F197: 1 | G197: 0 | H197: 0 | I197: Ikke revurderet i forhold til ovenstående (næppe de store ændringer)
A198: Installationer, Miljøklasse A. (20-30 m2) - Mek/EL | B198: stk. | C198: 20 | D198: 1 | E198: 1 | F198: 1 | G198: 0 | H198: 0 | I198: Ikke revurderet i forhold til ovenstående (næppe de store ændringer)
A199: Installationer, Miljøklasse A. (20-30 m2) - SRO | B199: stk. | C199: 10 | D199: 0 | E199: 0 | F199: 0 | G199: 0 | H199: 0
A200: Installationer, Miljøklasse B. (7-20 m2) - Mek/EL | B200: stk. | C200: 20 | D200: 2 | E200: 2 | F200: 2 | G200: 0 | H200: 0 | I200: Ikke revurderet i forhold til ovenstående (næppe de store ændringer)
A201: Installationer, Miljøklasse B. (7-20 m2) - SRO | B201: stk. | C201: 10 | D201: 0 | E201: 0 | F201: 0 | G201: 0 | H201: 0
... 117 more rows

Sheet Fællesfunktionsanlæg
A1: Fællesfunktionsanlæg | B1: Enhed | C1: Standard-levetid | D1: Samlet mængde per 31/12-2022 | E1: Samlet mængde per 31/12-2023 | F1: Samlet mængde per 31/12-2024 | G1: Afvigelse 2022-2023 | H1: Afvigelse 2023-2024 | I1: Bemærkninger
A3: Andre | G3: =IF(D3="",IF(E3>0,"Ny data",IF(E3="","",0)),IF(D3=0,IF(E3=0,0,"Ny data"),(E3-D3)/D3)) ->  | H3: =IF(E3="",IF(F3>0,"Ny data",IF(F3="","",0)),IF(E3=0,IF(F3=0,0,"Ny data"),(F3-E3)/E3)) -> 
A4: Administrationbygninger | B4: m2 | C4: 75 | D4: 1615 | E4: 1615 | F4: =1615+2470 -> 4085 | G4: 0 | H4: 1.529411765 | I4: Ny adm. Bygning 1/4-24
A5: Arbejdsplads og kontor | B5: stk. | C5: 5 | D5: 39 | E5: 41 | F5: 44 | G5: 0.05128205128 | H5: 0.07317073171
A6: Køretøjer, personbil | B6: stk. | C6: 5 | D6: 3 | E6: 3 | F6: 5 | G6: 0 | H6: 0.6666666667 | I6: 2 nye biler. De gamle flyttet til CRA
A7: Køretøjer, små lastvogne (< 3.500 kg.) | B7: stk. | C7: 5 | D7: 13 | E7: 13 | F7: 13 | G7: 0 | H7: 0
A8: Køretøjer, store lastvogne (> 3.500 kg.) | B8: stk. | C8: 5 | D8: 3 | E8: 3 | F8: 3 | G8: 0 | H8: 0
A9: Køretøjer, entreprenørmaskiner | B9: stk. | C9: 5 | D9: 0 | E9: 0 | F9: 0 | G9: 0 | H9: 0
A10: Slamsugere | B10: stk. | C10: 5 | D10: 1 | E10: 1 | F10: 1 | G10: 0 | H10: 0
A11: Værksteder, garager | B11: m2 | C11: 75 | D11: 2977 | E11: 2977 | F11: 2977 | G11: 0 | H11: 0
A12: Solcelleanlæg eksl. Inverter | B12: kWp | C12: 25 | D12: 24.42 | E12: =24.42+519.06 -> 543.48 | F12: =24.42+519.06 -> 543.48 | G12: 21.25552826 | H12: 0 | I12: Opsat paneler på 6 lokationer i 2023
A13: Inverter til solcelleanlæg | B13: kWp | C13: 10 | D13: 26 | E13: =26+505.12 -> 531.12 | F13: =26+505.12 -> 531.12 | G13: 19.42769231 | H13: 0 | I13: Opsat invertere på 6 lokationer i 2023
